[Event "Early-Titled-Tuesday-Blitz-April-02-2024"]
[Site "Chess.com"]
[Date "2024.04.02"]
[Round "10"]
[White "Vse_po_kaify"]
[Black "GnowReopard"]
[Result "0-1"]
[WhiteElo "2525"]
[BlackElo "2762"]
[TimeControl "180+1"]
[EndTime "9:55:57 PDT"]
[Termination "GnowReopard won by resignation"]

1. e4 {[%clk 0:02:59]} 1... e6 {[%clk 0:02:59.5]} 2. d4 {[%clk 0:02:58.7]} 2...
d5 {[%clk 0:02:59.9]} 3. Bd3 {[%clk 0:02:59.2]} 3... dxe4 {[%clk 0:02:59.2]} 4.
Bxe4 {[%clk 0:02:59.8]} 4... Nf6 {[%clk 0:02:58.4]} 5. Bf3 {[%clk 0:02:59.9]}
5... Be7 {[%clk 0:02:56.5]} 6. Nc3 {[%clk 0:02:58.9]} 6... O-O {[%clk
0:02:55.7]} 7. Nge2 {[%clk 0:02:57.7]} 7... c5 {[%clk 0:02:49.5]} 8. Be3 {[%clk
0:02:57.7]} 8... Nbd7 {[%clk 0:02:39.9]} 9. O-O {[%clk 0:02:43.2]} 9... cxd4
{[%clk 0:02:39.1]} 10. Nxd4 {[%clk 0:02:42.6]} 10... Ne5 {[%clk 0:02:38.8]} 11.
Be2 {[%clk 0:02:42.9]} 11... Qc7 {[%clk 0:02:36.2]} 12. Ndb5 {[%clk 0:02:35.9]}
12... Qb8 {[%clk 0:02:31.1]} 13. Qd4 {[%clk 0:02:29.3]} 13... Rd8 {[%clk
0:02:18.6]} 14. Qf4 {[%clk 0:02:12.4]} 14... a6 {[%clk 0:02:13.8]} 15. Nd4
{[%clk 0:02:11.7]} 15... Ng6 {[%clk 0:01:42.2]} 16. Qxb8 {[%clk 0:01:59.6]}
16... Rxb8 {[%clk 0:01:43.1]} 17. Rad1 {[%clk 0:01:56.6]} 17... e5 {[%clk
0:01:42.5]} 18. Nb3 {[%clk 0:01:56.4]} 18... Bf5 {[%clk 0:01:41]} 19. Bd3 {[%clk
0:01:38.6]} 19... Bxd3 {[%clk 0:01:40.2]} 20. Rxd3 {[%clk 0:01:38.6]} 20... Rxd3
{[%clk 0:01:39.6]} 21. cxd3 {[%clk 0:01:39.1]} 21... Rd8 {[%clk 0:01:39.9]} 22.
Rd1 {[%clk 0:01:38.9]} 22... Nh4 {[%clk 0:01:27.7]} 23. Kf1 {[%clk 0:01:35.7]}
23... Nf5 {[%clk 0:01:27.3]} 24. Ke2 {[%clk 0:01:35]} 24... h5 {[%clk
0:01:15.2]} 25. Bb6 {[%clk 0:01:33.8]} 25... Re8 {[%clk 0:01:00.8]} 26. Re1
{[%clk 0:01:21.8]} 26... Bb4 {[%clk 0:00:55.7]} 27. Be3 {[%clk 0:01:05.5]} 27...
Nd4+ {[%clk 0:00:55.2]} 28. Kd2 {[%clk 0:00:58.8]} 28... Nxb3+ {[%clk 0:00:55]}
29. axb3 {[%clk 0:00:59.3]} 29... Rc8 {[%clk 0:00:54.6]} 30. Rc1 {[%clk
0:00:47.2]} 30... Nd5 {[%clk 0:00:51.9]} 31. f3 {[%clk 0:00:43.5]} 31... f6
{[%clk 0:00:49.5]} 32. d4 {[%clk 0:00:43.6]} 32... Rd8 {[%clk 0:00:35.3]} 33.
Kd3 {[%clk 0:00:30.1]} 33... Nxe3 {[%clk 0:00:34.7]} 34. Na2 {[%clk 0:00:23.8]}
34... Nd5 {[%clk 0:00:34.5]} 35. dxe5 {[%clk 0:00:22.9]} 35... Nc3+ {[%clk
0:00:34.4]} 0-1

[Event "Early-Titled-Tuesday-Blitz-April-02-2024"]
[Site "Chess.com"]
[Date "2024.04.02"]
[Round "10"]
[White "Darkdefense15"]
[Black "valik3504"]
[Result "0-1"]
[WhiteElo "2343"]
[BlackElo "2548"]
[TimeControl "180+1"]
[EndTime "9:55:58 PDT"]
[Termination "valik3504 won by resignation"]

1. d4 {[%clk 0:03:00.9]} 1... Nf6 {[%clk 0:02:58.8]} 2. Bf4 {[%clk 0:03:00]}
2... c5 {[%clk 0:02:58.1]} 3. dxc5 {[%clk 0:02:56.5]} 3... Qa5+ {[%clk
0:02:54.6]} 4. Qd2 {[%clk 0:02:56.9]} 4... Qxc5 {[%clk 0:02:54.6]} 5. Nc3 {[%clk
0:02:57.6]} 5... Nc6 {[%clk 0:02:53.1]} 6. Nf3 {[%clk 0:02:57.2]} 6... d5 {[%clk
0:02:53]} 7. O-O-O {[%clk 0:02:56.5]} 7... Bf5 {[%clk 0:02:23.9]} 8. Ne5 {[%clk
0:02:41.6]} 8... e6 {[%clk 0:02:06.5]} 9. f3 {[%clk 0:02:17.7]} 9... Be7 {[%clk
0:01:35.2]} 10. g4 {[%clk 0:02:07.3]} 10... Bg6 {[%clk 0:01:24.9]} 11. e3 {[%clk
0:02:05.2]} 11... Rc8 {[%clk 0:01:21.3]} 12. h4 {[%clk 0:01:58.1]} 12... Nxe5
{[%clk 0:01:03.9]} 13. Bxe5 {[%clk 0:01:59]} 13... h6 {[%clk 0:00:56.9]} 14.
Bb5+ {[%clk 0:01:56.7]} 14... Kf8 {[%clk 0:00:56.3]} 15. g5 {[%clk 0:01:45.4]}
15... Nh5 {[%clk 0:00:39.7]} 16. e4 {[%clk 0:01:17.8]} 16... dxe4 {[%clk
0:00:30.3]} 17. fxe4 {[%clk 0:01:18.7]} 17... Qxe5 {[%clk 0:00:26.4]} 18. Qd7
{[%clk 0:01:11]} 18... Qc7 {[%clk 0:00:24.4]} 19. Qd3 {[%clk 0:00:49]} 19... Nf4
{[%clk 0:00:19.9]} 20. Qf3 {[%clk 0:00:45.3]} 20... hxg5 {[%clk 0:00:16.5]} 21.
hxg5 {[%clk 0:00:45]} 21... Rxh1 {[%clk 0:00:17.1]} 22. Rxh1 {[%clk 0:00:44]}
22... Bxg5 {[%clk 0:00:16.6]} 23. Rh8+ {[%clk 0:00:37.3]} 23... Ke7 {[%clk
0:00:16.6]} 24. Rxc8 {[%clk 0:00:24.9]} 24... Qxc8 {[%clk 0:00:10.8]} 25. Kb1
{[%clk 0:00:25.1]} 25... Qc5 {[%clk 0:00:09.1]} 26. a4 {[%clk 0:00:24]} 26... a6
{[%clk 0:00:08.6]} 27. Bd3 {[%clk 0:00:21.5]} 27... Qg1+ {[%clk 0:00:06.8]} 28.
Ka2 {[%clk 0:00:21.4]} 28... Bh5 {[%clk 0:00:06.4]} 29. Qd1 {[%clk 0:00:15.5]}
29... Bxd1 {[%clk 0:00:05.7]} 30. Nxd1 {[%clk 0:00:16.4]} 30... Qxd1 {[%clk
0:00:06]} 0-1

[Event "Early-Titled-Tuesday-Blitz-April-02-2024"]
[Site "Chess.com"]
[Date "2024.04.02"]
[Round "10"]
[White "Mr_ruthless"]
[Black "Donskov_AN"]
[Result "1-0"]
[WhiteElo "2512"]
[BlackElo "2377"]
[TimeControl "180+1"]
[EndTime "9:55:58 PDT"]
[Termination "Mr_ruthless won by resignation"]

1. Nf3 {[%clk 0:03:00.9]} 1... Nf6 {[%clk 0:02:59.1]} 2. c4 {[%clk 0:03:00.5]}
2... c5 {[%clk 0:02:58.9]} 3. g3 {[%clk 0:02:58.9]} 3... g6 {[%clk 0:02:59.1]}
4. b3 {[%clk 0:02:57.6]} 4... b6 {[%clk 0:02:59]} 5. Bg2 {[%clk 0:02:55.3]} 5...
Bb7 {[%clk 0:02:59.3]} 6. Bb2 {[%clk 0:02:55.9]} 6... Bg7 {[%clk 0:02:59.7]} 7.
O-O {[%clk 0:02:56.5]} 7... O-O {[%clk 0:02:59.9]} 8. d4 {[%clk 0:02:57.2]} 8...
cxd4 {[%clk 0:02:58.1]} 9. Qxd4 {[%clk 0:02:57.1]} 9... Nh5 {[%clk 0:02:51.6]}
10. Qd2 {[%clk 0:02:56.1]} 10... Bxb2 {[%clk 0:02:52.1]} 11. Qxb2 {[%clk
0:02:57]} 11... Ng7 {[%clk 0:02:52.7]} 12. Nc3 {[%clk 0:02:54.1]} 12... d6
{[%clk 0:02:50.3]} 13. Rad1 {[%clk 0:02:54.6]} 13... Nd7 {[%clk 0:02:50.3]} 14.
e4 {[%clk 0:02:54.6]} 14... Ne6 {[%clk 0:02:09.8]} 15. e5 {[%clk 0:02:48.6]}
15... Bxf3 {[%clk 0:01:32.4]} 16. Bxf3 {[%clk 0:02:49.5]} 16... Nxe5 {[%clk
0:01:32.6]} 17. Bxa8 {[%clk 0:02:48]} 17... Qxa8 {[%clk 0:01:33.5]} 18. Nd5
{[%clk 0:02:48.3]} 18... Qb7 {[%clk 0:01:31.8]} 19. f4 {[%clk 0:02:46.3]} 19...
Ng4 {[%clk 0:01:13.5]} 20. Rde1 {[%clk 0:02:45.1]} 20... Nh6 {[%clk 0:01:01.8]}
21. Re4 {[%clk 0:02:33.8]} 21... Qd7 {[%clk 0:01:01.5]} 22. Rfe1 {[%clk
0:02:32.9]} 22... Nf5 {[%clk 0:00:45.1]} 23. g4 {[%clk 0:02:24]} 23... Nh4
{[%clk 0:00:36.7]} 24. R1e3 {[%clk 0:02:23.9]} 24... h5 {[%clk 0:00:18.6]} 25.
f5 {[%clk 0:02:18.8]} 25... gxf5 {[%clk 0:00:10.4]} 26. gxf5 {[%clk 0:02:19.4]}
26... Nxf5 {[%clk 0:00:11.3]} 27. Rf3 {[%clk 0:02:19.1]} 27... Neg7 {[%clk
0:00:10]} 28. Rxe7 {[%clk 0:02:09.4]} 28... Qc8 {[%clk 0:00:10.4]} 29. Re4
{[%clk 0:01:52.5]} 29... Qc5+ {[%clk 0:00:09.8]} 30. Qf2 {[%clk 0:01:46.8]}
30... Qxf2+ {[%clk 0:00:05]} 31. Rxf2 {[%clk 0:01:44.3]} 31... Kh7 {[%clk
0:00:05.6]} 32. Ref4 {[%clk 0:01:36.7]} 32... Nh6 {[%clk 0:00:02.9]} 33. Rf6
{[%clk 0:01:29.2]} 33... Re8 {[%clk 0:00:02.3]} 34. Rxd6 {[%clk 0:01:24.2]}
34... Re1+ {[%clk 0:00:02.2]} 35. Rf1 {[%clk 0:01:24]} 35... Re2 {[%clk
0:00:02.3]} 36. Nf6+ {[%clk 0:01:22.1]} 36... Kg6 {[%clk 0:00:02.3]} 37. Ng4+
{[%clk 0:01:20.3]} 37... Kg5 {[%clk 0:00:02.5]} 38. Nxh6 {[%clk 0:01:19]} 38...
Ne6 {[%clk 0:00:02.1]} 39. Nxf7+ {[%clk 0:01:19.2]} 39... Kg4 {[%clk 0:00:02.7]}
40. Nh6+ {[%clk 0:01:12.5]} 40... Kh3 {[%clk 0:00:03]} 41. Rf3+ {[%clk
0:01:12.2]} 41... Kh4 {[%clk 0:00:03.4]} 42. Nf5+ {[%clk 0:01:10.9]} 42... Kg5
{[%clk 0:00:03.6]} 43. Nd4 {[%clk 0:01:09.4]} 43... Nxd4 {[%clk 0:00:03.6]} 44.
Rxd4 {[%clk 0:01:10.3]} 44... Rxa2 {[%clk 0:00:02.9]} 45. c5 {[%clk 0:01:09.5]}
1-0

[Event "Early-Titled-Tuesday-Blitz-April-02-2024"]
[Site "Chess.com"]
[Date "2024.04.02"]
[Round "10"]
[White "MathiasWomacka"]
[Black "Pragmatist237"]
[Result "1-0"]
[WhiteElo "2488"]
[BlackElo "2298"]
[TimeControl "180+1"]
[EndTime "9:55:58 PDT"]
[Termination "MathiasWomacka won by resignation"]

1. e4 {[%clk 0:03:00.9]} 1... c5 {[%clk 0:02:58.7]} 2. Nf3 {[%clk 0:03:00]} 2...
d6 {[%clk 0:02:58.7]} 3. d4 {[%clk 0:03:00.5]} 3... cxd4 {[%clk 0:02:59.6]} 4.
Nxd4 {[%clk 0:03:00.5]} 4... Nf6 {[%clk 0:02:59.6]} 5. Nc3 {[%clk 0:03:01]} 5...
a6 {[%clk 0:03:00]} 6. Be2 {[%clk 0:03:00]} 6... e5 {[%clk 0:02:59]} 7. Nb3
{[%clk 0:03:00.6]} 7... Be7 {[%clk 0:02:59.5]} 8. O-O {[%clk 0:03:00.4]} 8...
O-O {[%clk 0:03:00.2]} 9. Kh1 {[%clk 0:02:59.9]} 9... b5 {[%clk 0:02:59.7]} 10.
a4 {[%clk 0:02:58.5]} 10... b4 {[%clk 0:02:59.3]} 11. Nd5 {[%clk 0:02:58.2]}
11... a5 {[%clk 0:02:54.6]} 12. Be3 {[%clk 0:02:22.6]} 12... Nbd7 {[%clk
0:02:47.3]} 13. Nxe7+ {[%clk 0:02:10.1]} 13... Qxe7 {[%clk 0:02:41.8]} 14. f3
{[%clk 0:02:10]} 14... Ba6 {[%clk 0:02:10.3]} 15. Nxa5 {[%clk 0:02:04.8]} 15...
Bxe2 {[%clk 0:02:09.9]} 16. Nc6 {[%clk 0:02:04.4]} 16... Qe8 {[%clk 0:01:45.8]}
17. Qxe2 {[%clk 0:02:02.3]} 17... Nb6 {[%clk 0:01:10.2]} 18. Nxb4 {[%clk
0:01:47.8]} 18... Nxa4 {[%clk 0:01:03.7]} 19. b3 {[%clk 0:01:39.1]} 19... Nc5
{[%clk 0:00:52.3]} 20. Qd2 {[%clk 0:01:21.3]} 20... Nb7 {[%clk 0:00:25.7]} 21.
Bg5 {[%clk 0:01:04.5]} 21... Nd7 {[%clk 0:00:12.4]} 22. Nd5 {[%clk 0:00:50.4]}
22... f6 {[%clk 0:00:12.4]} 23. Be3 {[%clk 0:00:48.7]} 23... Rxa1 {[%clk
0:00:12]} 24. Rxa1 {[%clk 0:00:47.5]} 24... Qh5 {[%clk 0:00:12.6]} 25. Ra7
{[%clk 0:00:42.2]} 25... Ndc5 {[%clk 0:00:11.9]} 26. Ne7+ {[%clk 0:00:28.2]}
26... Kf7 {[%clk 0:00:11.9]} 27. Nf5 {[%clk 0:00:23.5]} 27... Rd8 {[%clk
0:00:08.7]} 28. Bxc5 {[%clk 0:00:20.6]} 28... dxc5 {[%clk 0:00:09.6]} 29. Rxb7+
{[%clk 0:00:19]} 29... Kg6 {[%clk 0:00:09.5]} 30. Qxd8 {[%clk 0:00:17.2]} 1-0

[Event "Early-Titled-Tuesday-Blitz-April-02-2024"]
[Site "Chess.com"]
[Date "2024.04.02"]
[Round "10"]
[White "IsmaelAmadorGarcia"]
[Black "dodorox"]
[Result "0-1"]
[WhiteElo "2303"]
[BlackElo "2190"]
[TimeControl "180+1"]
[EndTime "9:56:00 PDT"]
[Termination "dodorox won by resignation"]

1. e4 {[%clk 0:03:00.9]} 1... e6 {[%clk 0:02:59.5]} 2. d4 {[%clk 0:03:00.1]}
2... d5 {[%clk 0:03:00.1]} 3. Nc3 {[%clk 0:03:00.6]} 3... Nf6 {[%clk 0:02:59.4]}
4. e5 {[%clk 0:03:00.5]} 4... Nfd7 {[%clk 0:03:00]} 5. f4 {[%clk 0:03:01]} 5...
c5 {[%clk 0:03:00.5]} 6. Nf3 {[%clk 0:03:01.6]} 6... Nc6 {[%clk 0:03:01.1]} 7.
Be3 {[%clk 0:03:01.9]} 7... Qb6 {[%clk 0:03:01.3]} 8. Na4 {[%clk 0:02:51.3]}
8... Qa5+ {[%clk 0:03:01.8]} 9. c3 {[%clk 0:02:51.7]} 9... c4 {[%clk 0:03:01.6]}
10. b4 {[%clk 0:02:46.5]} 10... Nxb4 {[%clk 0:03:00.2]} 11. cxb4 {[%clk
0:02:46.5]} 11... Bxb4+ {[%clk 0:03:01]} 12. Kf2 {[%clk 0:02:42.2]} 12... b5
{[%clk 0:02:57.3]} 13. Nc5 {[%clk 0:02:40.6]} 13... Bxc5 {[%clk 0:02:17.2]} 14.
dxc5 {[%clk 0:02:40.3]} 14... Qc7 {[%clk 0:02:17.8]} 15. Qd4 {[%clk 0:02:33.7]}
15... a5 {[%clk 0:02:09.6]} 16. a3 {[%clk 0:02:29.3]} 16... Ba6 {[%clk
0:02:06.3]} 17. Be2 {[%clk 0:02:27.2]} 17... Rc8 {[%clk 0:02:05.1]} 18. f5
{[%clk 0:02:01.4]} 18... Nxc5 {[%clk 0:01:46.2]} 19. Qxc5 {[%clk 0:01:59.6]}
19... Qxc5 {[%clk 0:01:44.6]} 20. Bxc5 {[%clk 0:02:00.2]} 20... Rxc5 {[%clk
0:01:45]} 21. fxe6 {[%clk 0:01:59.9]} 21... fxe6 {[%clk 0:01:44.6]} 22. Nd4
{[%clk 0:02:00.1]} 22... Ke7 {[%clk 0:01:27.7]} 23. Bg4 {[%clk 0:01:55.4]} 23...
Bc8 {[%clk 0:01:27.2]} 24. Ke3 {[%clk 0:01:55.3]} 24... Rf8 {[%clk 0:01:17.2]}
25. Rhf1 {[%clk 0:01:49.5]} 25... Rxf1 {[%clk 0:01:12.2]} 26. Rxf1 {[%clk
0:01:50]} 26... b4 {[%clk 0:00:55.3]} 27. axb4 {[%clk 0:01:48.7]} 27... axb4
{[%clk 0:00:56.2]} 28. Ra1 {[%clk 0:01:45.9]} 28... Rc7 {[%clk 0:00:35.9]} 29.
Ra6 {[%clk 0:01:45.5]} 29... Bxa6 {[%clk 0:00:28.4]} 30. Nxe6 {[%clk 0:01:42.3]}
30... Ra7 {[%clk 0:00:24.9]} 31. Nf4 {[%clk 0:01:40.7]} 31... Bb7 {[%clk
0:00:24.4]} 32. Kd4 {[%clk 0:01:39.2]} 32... b3 {[%clk 0:00:19.3]} 33. Ne2
{[%clk 0:01:21.4]} 33... b2 {[%clk 0:00:16.7]} 34. Nc3 {[%clk 0:01:21.5]} 34...
Ra1 {[%clk 0:00:15.6]} 35. Bf5 {[%clk 0:01:20.8]} 35... g6 {[%clk 0:00:15.5]}
36. Bb1 {[%clk 0:01:21]} 36... Ke6 {[%clk 0:00:12.2]} 37. g4 {[%clk 0:01:20.2]}
37... Bc6 {[%clk 0:00:11.3]} 38. h4 {[%clk 0:01:19.1]} 38... Ba4 {[%clk
0:00:09.8]} 39. Kc5 {[%clk 0:00:42.6]} 39... Rxb1 {[%clk 0:00:07.9]} 40. Nxa4
{[%clk 0:00:42.4]} 40... c3 {[%clk 0:00:05.6]} 41. Nxc3 {[%clk 0:00:40]} 41...
Rc1 {[%clk 0:00:05.7]} 0-1

[Event "Early-Titled-Tuesday-Blitz-April-02-2024"]
[Site "Chess.com"]
[Date "2024.04.02"]
[Round "10"]
[White "sergoy"]
[Black "lamomiajunior"]
[Result "1-0"]
[WhiteElo "2889"]
[BlackElo "2703"]
[TimeControl "180+1"]
[EndTime "9:56:06 PDT"]
[Termination "sergoy won by resignation"]

1. d4 {[%clk 0:03:00.9]} 1... Nf6 {[%clk 0:03:00.3]} 2. c4 {[%clk 0:03:01.4]}
2... e6 {[%clk 0:03:00.9]} 3. Nf3 {[%clk 0:03:02]} 3... d5 {[%clk 0:03:00.9]} 4.
Nc3 {[%clk 0:03:02.5]} 4... Bb4 {[%clk 0:03:00.2]} 5. Qa4+ {[%clk 0:03:02.4]}
5... Nc6 {[%clk 0:03:00]} 6. a3 {[%clk 0:03:02.2]} 6... Bxc3+ {[%clk 0:02:58.1]}
7. bxc3 {[%clk 0:03:03.1]} 7... Bd7 {[%clk 0:02:58.4]} 8. cxd5 {[%clk
0:03:00.4]} 8... exd5 {[%clk 0:02:58.6]} 9. Bg5 {[%clk 0:03:01.1]} 9... h6
{[%clk 0:02:56.2]} 10. Bh4 {[%clk 0:02:59.6]} 10... g5 {[%clk 0:02:55.6]} 11.
Bg3 {[%clk 0:02:59.9]} 11... Ne4 {[%clk 0:02:56.5]} 12. e3 {[%clk 0:02:59.4]}
12... h5 {[%clk 0:02:55.3]} 13. Qb3 {[%clk 0:02:32]} 13... h4 {[%clk 0:02:37.3]}
14. Be5 {[%clk 0:02:31]} 14... f6 {[%clk 0:02:23.4]} 15. Qxd5 {[%clk 0:02:30.4]}
15... Bf5 {[%clk 0:01:56.7]} 16. Qb5 {[%clk 0:02:20.9]} 16... Qd7 {[%clk
0:01:26.6]} 17. Bxc7 {[%clk 0:02:09.6]} 17... Nxc3 {[%clk 0:01:24.2]} 18. Qxb7
{[%clk 0:01:49.7]} 18... Rc8 {[%clk 0:01:21.9]} 19. Qb3 {[%clk 0:01:37.8]} 19...
Nd5 {[%clk 0:01:17.1]} 20. Bb5 {[%clk 0:01:23]} 20... Rxc7 {[%clk 0:01:16.8]}
21. Rc1 {[%clk 0:01:13.8]} 21... O-O {[%clk 0:01:11.8]} 22. O-O {[%clk
0:01:14.1]} 22... Kg7 {[%clk 0:01:11.1]} 23. Rc5 {[%clk 0:01:11]} 23... Be4
{[%clk 0:01:08]} 24. Nd2 {[%clk 0:01:06.2]} 24... Bg6 {[%clk 0:00:19.3]} 25.
Qxd5 {[%clk 0:00:58.5]} 25... Qxd5 {[%clk 0:00:18.8]} 26. Rxd5 {[%clk
0:00:59.4]} 26... Na5 {[%clk 0:00:18.3]} 27. Ba6 {[%clk 0:00:41.9]} 27... Rb8
{[%clk 0:00:17.8]} 28. Rxa5 {[%clk 0:00:41.2]} 28... Rb2 {[%clk 0:00:17.8]} 29.
Nc4 {[%clk 0:00:39.4]} 29... Ra2 {[%clk 0:00:17.4]} 30. Rc5 {[%clk 0:00:39.4]}
30... Re7 {[%clk 0:00:16.2]} 31. Nd6 {[%clk 0:00:36.1]} 31... g4 {[%clk
0:00:15]} 32. Bc8 {[%clk 0:00:32.4]} 32... h3 {[%clk 0:00:13.8]} 33. Bxg4 {[%clk
0:00:31.5]} 33... Bd3 {[%clk 0:00:14.1]} 34. Rd1 {[%clk 0:00:29.8]} 34... Bc2
{[%clk 0:00:09.4]} 35. Rc1 {[%clk 0:00:27.4]} 35... Kf8 {[%clk 0:00:05.2]} 36.
gxh3 {[%clk 0:00:26.2]} 1-0

[Event "Early-Titled-Tuesday-Blitz-April-02-2024"]
[Site "Chess.com"]
[Date "2024.04.02"]
[Round "10"]
[White "mertfelin"]
[Black "martinmena"]
[Result "0-1"]
[WhiteElo "2257"]
[BlackElo "2173"]
[TimeControl "180+1"]
[EndTime "9:56:09 PDT"]
[Termination "martinmena won by resignation"]

1. e4 {[%clk 0:02:55.8]} 1... c6 {[%clk 0:02:59.4]} 2. d4 {[%clk 0:02:55.6]}
2... d5 {[%clk 0:03:00.3]} 3. e5 {[%clk 0:02:56.2]} 3... Bf5 {[%clk 0:02:57.8]}
4. h4 {[%clk 0:02:56.5]} 4... h5 {[%clk 0:02:56.9]} 5. Bd3 {[%clk 0:02:56.9]}
5... Bxd3 {[%clk 0:02:56.2]} 6. Qxd3 {[%clk 0:02:57.3]} 6... e6 {[%clk
0:02:56.9]} 7. Nf3 {[%clk 0:02:57.1]} 7... Qa5+ {[%clk 0:02:57.2]} 8. Nbd2
{[%clk 0:02:57.2]} 8... Qa6 {[%clk 0:02:57.5]} 9. c4 {[%clk 0:02:55.1]} 9... Ne7
{[%clk 0:02:57.9]} 10. O-O {[%clk 0:02:55.2]} 10... Nf5 {[%clk 0:02:58.3]} 11.
b3 {[%clk 0:02:55.9]} 11... Be7 {[%clk 0:02:57.4]} 12. a4 {[%clk 0:02:56.5]}
12... Nxh4 {[%clk 0:02:51.9]} 13. Ba3 {[%clk 0:02:54.8]} 13... Nxf3+ {[%clk
0:02:42.9]} 14. Qxf3 {[%clk 0:02:53.2]} 14... Bxa3 {[%clk 0:02:42.7]} 15. Rxa3
{[%clk 0:02:53.4]} 15... Qb6 {[%clk 0:02:37.5]} 16. Qd3 {[%clk 0:02:44.2]} 16...
Nd7 {[%clk 0:02:33]} 17. a5 {[%clk 0:02:41.4]} 17... Qd8 {[%clk 0:02:24.8]} 18.
b4 {[%clk 0:02:40.6]} 18... dxc4 {[%clk 0:02:20.9]} 19. Nxc4 {[%clk 0:02:41]}
19... O-O {[%clk 0:02:18.6]} 20. Qf3 {[%clk 0:02:40.6]} 20... Qg5 {[%clk
0:02:08.9]} 21. Rb3 {[%clk 0:02:37.9]} 21... a6 {[%clk 0:02:05.7]} 22. Nd6
{[%clk 0:02:37.8]} 22... Rab8 {[%clk 0:01:59.8]} 23. Ne4 {[%clk 0:02:38.3]}
23... Qg6 {[%clk 0:01:52.7]} 24. Qe2 {[%clk 0:02:37.5]} 24... b6 {[%clk
0:01:45.9]} 25. Rg3 {[%clk 0:02:33.7]} 25... Qf5 {[%clk 0:01:11.5]} 26. Rg5
{[%clk 0:02:27.2]} 26... Qh7 {[%clk 0:01:00.8]} 27. Rxh5 {[%clk 0:02:25.4]}
27... Qg6 {[%clk 0:00:55.5]} 28. Rg5 {[%clk 0:02:26]} 28... Qh6 {[%clk
0:00:47.8]} 29. Rg3 {[%clk 0:02:08.8]} 29... bxa5 {[%clk 0:00:32.2]} 30. bxa5
{[%clk 0:02:09]} 30... Rb5 {[%clk 0:00:30.2]} 31. Rc1 {[%clk 0:02:09]} 31... c5
{[%clk 0:00:26]} 32. Rd1 {[%clk 0:02:01.2]} 32... cxd4 {[%clk 0:00:23.1]} 33.
Rh3 {[%clk 0:02:00]} 33... Qg6 {[%clk 0:00:20.4]} 34. Rxd4 {[%clk 0:01:55]}
34... Rxe5 {[%clk 0:00:16.6]} 35. Qd3 {[%clk 0:01:50.7]} 35... Nf6 {[%clk
0:00:10.1]} 36. Nxf6+ {[%clk 0:01:48.6]} 36... gxf6 {[%clk 0:00:09.5]} 37. Qxa6
{[%clk 0:01:45.9]} 37... Re1+ {[%clk 0:00:08]} 38. Kh2 {[%clk 0:01:45.9]} 38...
Re5 {[%clk 0:00:04.2]} 39. Rdh4 {[%clk 0:01:44.6]} 39... Kg7 {[%clk 0:00:01.8]}
40. Qb7 {[%clk 0:01:41.5]} 40... Rg5 {[%clk 0:00:02.2]} 41. Rh7+ {[%clk
0:01:40.1]} 41... Qxh7 {[%clk 0:00:02.1]} 42. Rxh7+ {[%clk 0:01:40.5]} 42...
Kxh7 {[%clk 0:00:03]} 43. a6 {[%clk 0:01:40.6]} 43... Kg7 {[%clk 0:00:03.4]} 44.
a7 {[%clk 0:01:40.9]} 44... Ra5 {[%clk 0:00:03.8]} 45. Qb6 {[%clk 0:01:37.8]}
45... Ra2 {[%clk 0:00:03.5]} 46. Kg3 {[%clk 0:01:36.7]} 46... Ra8 {[%clk
0:00:04]} 47. Qe3 {[%clk 0:01:36.4]} 47... R2xa7 {[%clk 0:00:04.5]} 48. Kh2
{[%clk 0:01:36.9]} 48... Kf8 {[%clk 0:00:05.1]} 49. Qc5+ {[%clk 0:01:36.1]}
49... Kg7 {[%clk 0:00:05.1]} 50. Qh5 {[%clk 0:01:37]} 50... Kf8 {[%clk
0:00:05.2]} 51. Qc5+ {[%clk 0:01:37.2]} 51... Kg7 {[%clk 0:00:05.5]} 52. g3
{[%clk 0:01:38]} 52... Rh8+ {[%clk 0:00:05.6]} 53. Kg2 {[%clk 0:01:38.5]} 53...
Rha8 {[%clk 0:00:04.4]} 54. Qe3 {[%clk 0:01:38.9]} 54... Ra3 {[%clk 0:00:04.5]}
55. Qe4 {[%clk 0:01:39.4]} 55... R3a4 {[%clk 0:00:04.7]} 56. Qc6 {[%clk
0:01:40]} 56... f5 {[%clk 0:00:05]} 57. Qc3+ {[%clk 0:01:40.2]} 57... Kf8 {[%clk
0:00:05.1]} 58. Qf3 {[%clk 0:01:41.1]} 58... Ke7 {[%clk 0:00:05.5]} 59. Qh5
{[%clk 0:01:41.5]} 59... R8a5 {[%clk 0:00:05.8]} 60. Qh7 {[%clk 0:01:41.7]}
60... Ra2 {[%clk 0:00:06.1]} 61. Qg7 {[%clk 0:01:42.1]} 61... Rc2 {[%clk
0:00:06]} 62. Qg5+ {[%clk 0:01:41.6]} 62... Ke8 {[%clk 0:00:04.7]} 63. Qg8+
{[%clk 0:01:41.5]} 63... Ke7 {[%clk 0:00:05.3]} 64. Qg5+ {[%clk 0:01:41.4]}
64... Kd7 {[%clk 0:00:05.6]} 65. Qf4 {[%clk 0:01:41.5]} 65... Raa2 {[%clk
0:00:05.6]} 66. Qd4+ {[%clk 0:01:42.1]} 66... Ke7 {[%clk 0:00:05.8]} 67. Qb4+
{[%clk 0:01:42.1]} 67... Ke8 {[%clk 0:00:06]} 68. Qb8+ {[%clk 0:01:42.5]} 68...
Ke7 {[%clk 0:00:06.5]} 69. Qb7+ {[%clk 0:01:42.1]} 69... Kf6 {[%clk 0:00:06.6]}
70. Kh3 {[%clk 0:01:42.1]} 70... Rxf2 {[%clk 0:00:05.9]} 0-1